Cogmind - Beta 13 @@@ ROGUE MODE // 2024.05.11 @ 18:53:30 Player: Cherman0 Result: Destroyed by Lightning with EMDS Performance ------------- Evolutions (4) 2000 Regions Visited (15) 3000 Robots Destroyed (223) 1115 Value Destroyed (6420) 6420 Prototype IDs (48) 960 Alien Tech Used (0) 0 Bonus (4453) 4453 TOTAL SCORE: 17948 Bonus ------- High Alert Combat Kills 540 Follower Combat Kills 2349 Entered Garrisons 200 Used RIF Installer 1000 Network Hubs Disabled 200 Aligned with FarCom 300 Built Enhanced Grunts 300 A7 Reached Mainframe 300 Met R17 at Cetus 500 Friendly Fire -1236 Cogmind --------- Core Integrity 0/850 Matter 165/300 Energy 91/100 System Corruption 40% Temperature Cool (0) Movement Core (700) Ox13 Location -6/Hub_04(d) Parts ------- > --- POWER (1) -------- (None) > --- PROPULSION (4) --- (None) > --- UTILITY (6) ------ High-capacity Storage Unit Advanced Signal Interpreter Salvage Targeting Computer > --- WEAPON (4) ------- Backup Laser III > --- INVENTORY (20) --- Backup Power III Improved Light Armor Plating Improved Medium Armor Plating Improved Shield Generator Improved Hacking Suite Improved System Shield Long-range Tractor Beam Shock Maul Peak State ------------ > --- POWER ------------ Quantum Reactor > --- PROPULSION ------- Centrium Heavy Treads Centrium Heavy Treads > --- UTILITY ---------- High-capacity Storage Unit Experimental Sensor Array Advanced Signal Interpreter Salvage Targeting Computer Centrium Medium Armor Plating Relay Coupler [NC] > --- WEAPON ----------- Advanced Variable Charge Gun Enhanced Autogun Enhanced Autogun Enhanced Autogun > --- INVENTORY -------- Fission Core Quantum Reactor Improved Medium Treads Improved Medium Treads Advanced Heat Sink Cooling System High-capacity Matter Pod Light Armor Plating Improved Light Armor Plating Improved Shield Generator Hacking Suite Relay Coupler [Swarmer] Relay Coupler [Grunt] Ion Cannon Magnetic Acceleration Cannon Rocket Launcher Improved Grenade Launcher Datajack Remote Datajack Shock Maul [Rating: 99] Favorites ----------- Power Cooled Ion Engine Engine Cooled Ion Engine Power Core Fission Core Reactor Quantum Reactor Propulsion Light Treads Treads Light Treads Leg Aluminum Leg Utility High-capacity Storage Unit Device Cooling System Storage High-capacity Storage Unit Processor Salvage Targeting Computer Hackware Hacking Suite Protection Reactive Plating Weapon Advanced Beam Cannon Energy Gun Medium Laser Energy Cannon Advanced Beam Cannon Ballistic Gun Enhanced Autogun Ballistic Cannon Magnetic Acceleration Cannon Launcher Rocket Launcher Special Weapon Remote Datajack Impact Weapon Heavy Mace Special Melee Weapon Advanced Datajack Build | -11 -10 -10 -9 -9 -9 -8 -8 -8 -8 -8 -6 -6 -6 -6 -6 ------- Run | Yrd Mat Min Mat Min Exi Min Mat Sto Gar Rec Fac Ext Cet Arc Hub Slots Evolved 8 | . . . 2 . . . 2 . . . 4 . . . . Power . | . . . . . . . . . . . . . . . . Propulsion 2 | . . . 1 . . . . . . . 1 . . . . Utility 4 | . . . 1 . . . 2 . . . 1 . . . . Weapon 2 | . . . . . . . . . . . 2 . . . . Parts Attached 211 | 5 27 5 34 2 . 5 37 18 13 6 16 13 7 5 18 Power 12 | . 2 . 2 . . . . 3 . 1 1 . 1 . 2 Engine 8 | . 2 . 2 . . . . 3 . 1 . . . . . Core 2 | . . . . . . . . . . . 1 . . . 1 Reactor 2 | . . . . . . . . . . . . . 1 . 1 Propulsion 42 | 2 3 . 7 . . 3 14 4 2 . 1 2 2 . 2 Treads 42 | 2 3 . 7 . . 3 14 4 2 . 1 2 2 . 2 Leg . | . . . . . . . . . . . . . . . . Wheel . | . . . . . . . . . . . . . . . . Hover . | . . . . . . . . . . . . . . . . Flight . | . . . . . . . . . . . . . . . . Utility 66 | 2 9 4 12 2 . . 4 4 5 1 6 5 2 5 5 Device 29 | 2 5 3 5 2 . . 1 1 2 1 . 1 1 4 1 Storage 6 | . . 1 4 . . . . . . . . 1 . . . Processor 4 | . . . . . . . . 1 . . 2 1 . . . Hackware 4 | . . . . . . . 1 . . . 1 . . . 2 Protection 23 | . 4 . 3 . . . 2 2 3 . 3 2 1 1 2 Artifact . | . . . . . . . . . . . . . . . . Weapon 91 | 1 13 1 13 . . 2 19 7 6 4 8 6 2 . 9 Energy Gun 12 | . 6 1 2 . . . 1 . . . . . 1 . 1 Energy Cannon 29 | . . . 8 . . 1 10 5 3 2 . . . . . Ballistic Gun 14 | 1 1 . . . . . 1 . . . 6 3 1 . 1 Ballistic Cannon 1 | . . . . . . . . . . . . . . . 1 Launcher 21 | . 5 . 3 . . 1 4 2 3 1 . . . . 2 Special Weapon 5 | . 1 . . . . . . . . 1 1 . . . 2 Impact Weapon 4 | . . . . . . . 3 . . . 1 . . . . Slashing Weapon . | . . . . . . . . . . . . . . . . Piercing Weapon . | . . . . . . . . . . . . . . . . Special Melee Weapon 5 | . . . . . . . . . . . . 3 . . 2 Unidentified Prototypes 11 | . . 1 1 . . . 2 3 . . 1 . 3 . . Corrupted Parts 1 | . . . . . . . . . . . . . 1 . . System Corruption 11 | . . . . . . . . . . . . . 11 . . Parts Lost 23 | . . . . . . . 1 . 1 . 1 . . . 20 Power 3 | . . . . . . . . . . . . . . . 3 Propulsion 4 | . . . . . . . . . . . . . . . 4 Utility 6 | . . . . . . . 1 . 1 . 1 . . . 3 Weapon 10 | . . . . . . . . . . . . . . . 10 Highest Loss Streak 20 | . . . . . . . 1 . 1 . 1 . . . 20 To Critical Strikes . | . . . . . . . . . . . . . . . . Average Slot Usage (%) 98 | . 99 100 99 100 100 100 99 99 99 100 99 100 87 85 81 Engine 9 | . 13 14 11 11 11 11 9 8 9 9 . . . . . Treads 28 | . 27 28 32 33 33 33 26 26 27 27 26 26 13 13 12 Device 12 | . 11 14 11 11 11 11 18 18 9 16 7 6 6 7 6 Storage 9 | . 14 14 11 11 11 11 9 9 9 9 6 6 6 6 6 Processor 1 | . . . . . . . . . . . 11 13 13 13 13 Hackware 4 | . . . . . . . 7 9 9 9 4 6 6 6 7 Protection 9 | . 2 . 10 11 11 11 10 8 17 10 7 6 6 4 3 Energy Gun 2 | . 13 14 2 . . . . . . . . . . . 1 Energy Cannon 13 | . . . 17 22 22 22 17 17 17 17 . . . . . Ballistic Gun 6 | . 14 14 2 . . . . . . . 25 25 25 26 20 Naked Turns . | . . . . . . . . . . . . . . . . Heaviest Build 82 | 15 18 20 68 68 68 68 79 71 76 73 74 71 82 80 82 Greatest Support 160 | 40 40 40 63 60 60 60 64 64 64 64 86 102 160 160 160 Greatest Overweight (x) 14 | . . . 1 1 1 1 1 1 1 1 . . 1 . 14 Average Overweight (x) . | . . . . 1 1 1 1 . 1 1 . . . . . Largest Inventory Capacity 20 | 8 8 10 20 20 20 20 20 20 20 20 20 20 20 20 20 Average Capacity 17 | 8 8 8 15 20 20 20 20 20 20 20 20 20 20 20 20 Most Carried 20 | 6 8 9 20 20 20 20 20 20 20 20 20 20 20 20 20 Average Carried 17 | 4 7 8 14 20 20 19 19 19 19 19 18 19 19 20 18 Final Capacity 20 | 8 8 10 20 20 20 20 20 20 20 20 20 20 20 20 20 Final Carried 20 | 6 8 9 20 20 20 20 20 20 20 20 19 20 20 20 8 Class Distribution -------------------- 78% | Mutant 10% | Commander-Skirmisher 7% | Commander-Mutant Dominant Class ---------------- Mutant | -10/Materials Mutant | -10/Mines Mutant | -9/Materials Mutant | -9/Mines Mutant | -9/Exiles Mutant | -8/Mines Mutant | -8/Materials Mutant | -8/Storage Mutant | -8/Garrison Commander-Mutant | -8/Recycling Skirmisher | -6/Factory Commander-Skirmisher | -6/Extension Commander-Skirmisher | -6/Cetus Commander-Skirmisher | -6/Archives Commander-Skirmisher | -6/Hub_04(d) Resources | -11 -10 -10 -9 -9 -9 -8 -8 -8 -8 -8 -6 -6 -6 -6 -6 ----------- Run | Yrd Mat Min Mat Min Exi Min Mat Sto Gar Rec Fac Ext Cet Arc Hub Matter Collected 4728 | 280 496 89 457 20 . 61 432 255 263 229 316 646 306 506 372 Remotely . | . . . . . . . . . . . . . . . . Salvage Created 8492 | 180 524 . 2007 238 . 34 2001 1013 674 316 229 457 159 276 384 Parts 464 | 13 34 . 117 3 . 5 107 64 39 9 17 18 2 22 14 Haulers Intercepted 15 | . 2 . 5 . . . 4 4 . . . . . . . Recyclers Shooed 11 | . 1 . . . . . 7 1 . 1 . 1 . . . Parts Field Recycled . | . . . . . . . . . . . . . . . . Retrieved Matter . | . . . . . . . . . . . . . . . . Parts Self-Destructed . | . . . . . . . . . . . . . . . . Prevented . | . . . . . . . . . . . . . . . . Kills | -11 -10 -10 -9 -9 -9 -8 -8 -8 -8 -8 -6 -6 -6 -6 -6 ------- Run | Yrd Mat Min Mat Min Exi Min Mat Sto Gar Rec Fac Ext Cet Arc Hub Combat Hostiles Destroyed 146 | . 11 . 31 12 . 4 27 16 21 4 3 7 2 . 8 Melee 1 | . . . . . . . . . 1 . . . . . . Guns 24 | . 1 . 8 . . . . . . . 3 7 2 . 3 Cannons 79 | . . . 16 12 . 1 19 12 12 4 . . . . 3 AOE 37 | . 10 . 5 . . 3 6 3 8 . . . . . 2 Classes Destroyed 16 | 2 6 . 4 1 . . . . 1 1 . . . . 1 Worker 11 | . . . 5 . . . 4 1 . . . . . . 1 Builder 6 | . 1 . 1 . . . 2 1 . 1 . . . . . Tunneler 6 | 5 . . . . . . . . . . . 1 . . . Hauler 15 | . 2 . 5 . . . 4 4 . . . . . . . Recycler 15 | 1 2 . 3 . . . 6 2 . 1 . . . . . Mechanic 2 | . . . 2 . . . . . . . . . . . . Operator 17 | . 1 . 4 . . . 1 4 . . . . . 7 . Watcher 16 | . 2 . 5 . . . 4 2 . . 2 . 1 . . Swarmer 40 | . 6 . 6 . . 4 7 7 7 . 1 . . . 2 Grunt 51 | . 5 . 14 . . . 11 2 8 . . 5 1 . 5 Brawler 3 | . . . 1 . . . 1 . 1 . . . . . . Protector 1 | . . . . . . . . . . 1 . . . . . Sentry 34 | . . . 10 . . . 8 7 3 3 1 2 . . . Programmer 3 | . . . . . . . . . 2 . 1 . . . . Cetus Guard 1 | . . . . . . . . . . . . . 1 . . Lightning 1 | . . . . . . . . . . . . . . . 1 Assembled 12 | . . . . 12 . . . . . . . . . . . Best Kill Streak 9 | 4 6 . 9 2 . 4 8 6 6 4 2 3 1 5 3 Combat Bots Only 6 | . 3 . 4 2 . 4 6 4 6 3 1 3 1 . 2 Max Kills in Single Turn 4 | 1 2 . 4 1 . 3 4 2 3 2 1 1 1 1 2 Gunslinging . | . . . . . . . . . . . . . . . . Exploded 3 | . 2 . 2 . . 3 2 2 3 . . . . . 2 Melee 1 | . . . . . . . . . 1 . . . . . . Uniques/NPCs Destroyed 1 | . . . . 1 . . . . . . . . . . . YI-UF0 (-9/Mines) Combat | -11 -10 -10 -9 -9 -9 -8 -8 -8 -8 -8 -6 -6 -6 -6 -6 -------- Run | Yrd Mat Min Mat Min Exi Min Mat Sto Gar Rec Fac Ext Cet Arc Hub Hostile Shots Fired 640 | . 29 . 95 14 . 16 100 35 95 18 31 33 3 3 168 Missed 161 | . 13 . 22 3 . 4 26 7 27 4 13 10 . 2 30 Damage Taken 8930 | . 202 . 966 141 . 70 1022 279 907 202 164 296 181 20 4480 Core 1252 | . 11 . 164 . . 6 75 45 48 13 32 35 . . 823 Absorbed by Shields 143 | . . . . . . . . . 40 . . 49 54 . . Ignored by Resistances 212 | . . . 62 24 . 24 63 39 . . . . . . . Regen/Repaired (Parts) 510 | . 49 . 126 . . . 70 152 . . 113 . . . . Core Remaining (%) 79 | 100 . 95 . . . 57 . . . 67 . . . . . Volleys Fired 553 | 10 56 . 103 23 1 7 98 50 65 25 17 21 13 25 39 Largest 4 | 2 2 . 2 2 1 2 2 2 2 2 4 4 4 4 4 Hottest 162 | 70 100 . 136 136 68 136 136 136 128 128 100 100 100 100 162 Shots Fired 1209 | 20 97 . 200 46 1 13 193 92 108 40 59 84 54 100 102 Gun 522 | 20 83 . 44 . . . . . . . 56 84 54 100 81 Cannon 626 | . . . 150 46 1 12 188 90 98 28 . . . . 13 Launcher 40 | . 11 . 6 . . 1 5 2 10 1 . . . . 4 Special 21 | . 3 . . . . . . . . 11 3 . . . 4 Kinetic 441 | 10 42 . 22 . . . . . . . 56 84 54 100 73 Thermal 701 | 10 44 . 163 46 1 12 188 90 98 28 . . . . 21 Explosive 40 | . 11 . 6 . . 1 5 2 10 1 . . . . 4 Electromagnetic 9 | . . . 9 . . . . . . . . . . . . Robot Hit Streak 21 | 6 4 . 12 4 . 2 8 12 10 7 8 21 6 5 8 Robot Miss Streak 8 | 1 5 . 8 3 1 3 5 4 3 2 3 2 2 7 5 Penetration Max . | . . . . . . . . . . . . . . . . Secondary Targets 5 | . . . . . . . . . . . . 1 1 . 3 Max Gunslinging Chain 1 | . . . . . . . . . . . . 1 1 . 1 Shots Hit Robots 728 | 12 50 . 121 25 . 5 110 56 58 26 32 79 35 52 67 Core Hits 361 | 6 37 . 60 15 . 4 65 32 30 8 10 23 15 24 32 Critical Kills 6 | . . . 1 . . . 1 2 . . . 1 . 1 . Critical Parts Destroyed 2 | . 1 . . . . . . . . . . . 1 . . Critical Strikes 12 | . 3 . 1 . . . 1 2 . . . 2 1 1 1 Burn 2 | . 2 . . . . . . . . . . . . . . Meltdown 4 | . . . 1 . . . 1 2 . . . . . . . Destroy 5 | . 1 . . . . . . . . . . 2 1 1 . Blast 1 | . . . . . . . . . . . . . . . 1 Melee Attacks 31 | . . . . . . . 8 . . . . 22 . . 1 Impact 8 | . . . . . . . 8 . . . . . . . . Slashing . | . . . . . . . . . . . . . . . . Piercing . | . . . . . . . . . . . . . . . . Sneak Attacks 23 | . . . . . . . . . . . . 22 . . 1 Combat Hostiles . | . . . . . . . . . . . . . . . . Follow-up Attacks . | . . . . . . . . . . . . . . . . Damage Inflicted 16381 | 155 1289 . 2784 516 . 252 2968 1421 1901 516 549 1122 588 904 1416 Guns 5269 | 155 619 . 451 . . . . . . . 549 1122 588 904 881 Cannons 8248 | . . . 1924 516 . 102 2387 1303 1259 453 . . . . 304 Explosions 2760 | . 664 . 403 . . 148 543 108 636 27 . . . . 231 Melee . | . . . . . . . . . . . . . . . . Ramming 104 | . 6 . 6 . . 2 38 10 6 36 . . . . . Kinetic 4804 | 104 343 . 175 . . . . . . . 549 1122 588 904 1019 Thermal 8522 | 51 276 . 2009 516 . 102 2387 1303 1259 453 . . . . 166 Explosive 2760 | . 664 . 403 . . 148 543 108 636 27 . . . . 231 Electromagnetic 191 | . . . 191 . . . . . . . . . . . . Impact . | . . . . . . . . . . . . . . . . Slashing . | . . . . . . . . . . . . . . . . Piercing . | . . . . . . . . . . . . . . . . Highest Corruption 39 | . . . . . . . 1 1 5 5 . . 11 11 39 Average Corruption 3 | . . . . . . . 1 1 3 5 . . 11 8 19 Corruption Purged 11 | . . . . . . . . . . . . . . 11 . Corruption Blocked . | . . . . . . . . . . . . . . . . Effects 163 | . . . . . . . 21 22 26 55 . . 19 11 9 Message Errors 36 | . . . . . . . 1 6 4 13 . . 5 3 4 Matter Fused 35 | . . . . . . . 5 5 4 13 . . 5 3 . Heat Flow Errors 22 | . . . . . . . 2 2 5 10 . . 2 . 1 Energy Discharges 27 | . . . . . . . 5 5 4 9 . . 1 2 1 Parts Rejected 3 | . . . . . . . . . . 1 . . 1 . 1 Data Loss (minor) 21 | . . . . . . . 4 3 3 5 . . 2 3 1 Data Loss (major) 5 | . . . . . . . 2 . 2 1 . . . . . Misfires 9 | . . . . . . . 2 . 3 2 . . 2 . . Alerts 4 | . . . . . . . . 1 1 1 . . 1 . . Weapon Failures 1 | . . . . . . . . . . . . . . . 1 Overload Shots . | . . . . . . . . . . . . . . . . Overflow Damage 178 | . 7 . 31 18 . . 26 11 8 . . . . . 77 Projectiles 90 | . . . 31 18 . . 26 11 4 . . . . . . Explosions 88 | . 7 . . . . . . . 4 . . . . . 77 Melee . | . . . . . . . . . . . . . . . . Knockbacks 8 | . . . . . . . 1 . . 1 . . . . 6 Impact 2 | . . . . . . . 1 . . 1 . . . . . Kinetic 6 | . . . . . . . . . . . . . . . 6 Secondary . | . . . . . . . . . . . . . . . . Self-Inflicted Damage 140 | . 41 . . . . . . . 19 . . . . . 80 Shots 6 | . 3 . . . . . . . 1 . . . . . 2 Rammed 21 | . 2 . 3 . . 1 7 3 . 5 . . . . . Targets Rammed 25 | . 2 . 5 . . 1 7 4 1 5 . . . . . Kicked . | . . . . . . . . . . . . . . . . Crushed 4 | . . . 2 . . . . 1 1 . . . . . . Highest Temperature 505 | 63 150 . 198 300 . 36 246 207 304 248 256 284 224 308 505 Average Temperature 68 | 26 27 . 47 71 . 16 55 40 88 91 105 108 76 113 114 Received Heat Transfer 1963 | . 69 . 396 . . . 495 117 246 81 24 88 12 . 435 Effects 4 | . . . . . . . 1 . . . . . . 1 2 Shutdowns 1 | . . . . . . . . . . . . . . . 1 Energy Bleed 2 | . . . . . . . 1 . . . . . . 1 . Matter Decay 1 | . . . . . . . . . . . . . . . 1 Siege Activations . | . . . . . . . . . . . . . . . . Robots Corrupted . | . . . . . . . . . . . . . . . . Combat Hostiles . | . . . . . . . . . . . . . . . . Parts Fried 1 | . . . 1 . . . . . . . . . . . . Impact Corruptions . | . . . . . . . . . . . . . . . . Robots Melted 6 | . . . 2 . . . 2 2 . . . . . . . Combat Hostiles 5 | . . . 2 . . . 2 1 . . . . . . . Parts Melted 38 | . . . 12 . . 1 6 12 4 3 . . . . . Heat Transferred 15617 | 148 962 . 3737 925 . 185 4218 2294 1998 706 . . . . 444 Parts Sabotaged . | . . . . . . . . . . . . . . . . Parts Stolen . | . . . . . . . . . . . . . . . . Parts Stripped . | . . . . . . . . . . . . . . . . Power Chain Reactions . | . . . . . . . . . . . . . . . . Alert | -11 -10 -10 -9 -9 -9 -8 -8 -8 -8 -8 -6 -6 -6 -6 -6 ------- Run | Yrd Mat Min Mat Min Exi Min Mat Sto Gar Rec Fac Ext Cet Arc Hub Peak Influence 1048 | 30 198 48 454 177 . 99 440 617 1048 508 537 297 579 457 820 Initial 471 | . 19 48 . 177 . . . 172 135 471 453 127 165 151 89 Average 221 | 17 56 30 246 53 . 21 254 309 575 145 364 144 371 403 350 Maximum Alert Level 3 | . . . 2 . . . 2 2 3 2 2 1 2 2 3 Low Security (%) 52 | 100 100 100 35 100 . 100 27 2 12 82 . 88 4 4 46 Level 1 28 | . . . 43 . . . 52 81 5 9 51 11 67 38 8 Level 2 16 | . . . 20 . . . 19 15 48 8 48 . 27 57 22 Level 3 3 | . . . . . . . . . 33 . . . . . 22 Level 4 . | . . . . . . . . . . . . . . . . Level 5 . | . . . . . . . . . . . . . . . . High Security . | . . . . . . . . . . . . . . . . Max Security . | . . . . . . . . . . . . . . . . Squads Dispatched 24 | . 1 . 3 . . . 4 6 . . 1 . 1 . 8 Investigation 5 | . . . . . . . 2 . . . . . 1 . 2 Extermination 2 | . . . . . . . . . . . 1 . . . 1 Reinforcement 12 | . 1 . 3 . . . 2 3 . . . . . . 3 Assault . | . . . . . . . . . . . . . . . . Garrison 5 | . . . . . . . . 3 . . . . . . 2 Intercept . | . . . . . . . . . . . . . . . . Searches Triggered 1 | . . . . . . . . . . . 1 . . . . Construction Impeded 2 | . . . . . . . . . . . . . . . 2 Haulers Reinforced . | . . . . . . . . . . . . . . . . Active Scanning Responses . | . . . . . . . . . . . . . . . . Cargo Convoy Interrupts . | . . . . . . . . . . . . . . . . Stealth | -11 -10 -10 -9 -9 -9 -8 -8 -8 -8 -8 -6 -6 -6 -6 -6 --------- Run | Yrd Mat Min Mat Min Exi Min Mat Sto Gar Rec Fac Ext Cet Arc Hub Distress Signals 17 | . 1 . 5 . . . 3 2 . 1 1 . 2 . 2 Communications Jammed . | . . . . . . . . . . . . . . . . Distress Signals . | . . . . . . . . . . . . . . . . Times Spotted 279 | . 22 . 47 11 1 4 47 27 22 6 6 17 13 17 39 Peak Tracking Total 11 | . 5 . 5 2 9 4 5 4 5 2 2 3 5 2 11 Tactical Retreats 6 | . 1 . . . . . 2 1 1 . . . . . 1 Traps | -11 -10 -10 -9 -9 -9 -8 -8 -8 -8 -8 -6 -6 -6 -6 -6 ------- Run | Yrd Mat Min Mat Min Exi Min Mat Sto Gar Rec Fac Ext Cet Arc Hub Traps Triggered 7 | . 1 . . . . . . 1 5 . . . . . . Indirectly . | . . . . . . . . . . . . . . . . Trap Hack Attempts . | . . . . . . . . . . . . . . . . Triggered . | . . . . . . . . . . . . . . . . Disarmed . | . . . . . . . . . . . . . . . . Reprogrammed . | . . . . . . . . . . . . . . . . Reused . | . . . . . . . . . . . . . . . . Traps Extracted . | . . . . . . . . . . . . . . . . Installed . | . . . . . . . . . . . . . . . . Triggered . | . . . . . . . . . . . . . . . . Machines | -11 -10 -10 -9 -9 -9 -8 -8 -8 -8 -8 -6 -6 -6 -6 -6 ---------- Run | Yrd Mat Min Mat Min Exi Min Mat Sto Gar Rec Fac Ext Cet Arc Hub Machines Disabled 23 | . 1 . 2 . . . 2 4 3 . 5 . . 3 3 Max in Single Turn 2 | . 1 . 2 . . . 1 1 1 . . . . 1 . Garrison Access 1 | . . . . . . . 1 . . . . . . . . Garrison Relay 2 | . . . . . . . . . 2 . . . . . . Network Hub 1 | . . . . . . . . . . . . . . . 1 Machines Repaired . | . . . . . . . . . . . . . . . . Machines Dismantled . | . . . . . . . . . . . . . . . . Machines Sabotaged 1 | . . . . . . . . . . . . . . . 1 Overloaded Fab Kills . | . . . . . . . . . . . . . . . . Hacking | -11 -10 -10 -9 -9 -9 -8 -8 -8 -8 -8 -6 -6 -6 -6 -6 --------- Run | Yrd Mat Min Mat Min Exi Min Mat Sto Gar Rec Fac Ext Cet Arc Hub Machines Accessed 77 | . 9 . 14 . 2 . 10 11 2 12 4 6 3 . 4 Terminals 52 | . 6 . 9 . . . 5 8 2 5 4 6 3 . 4 Fabricators . | . . . . . . . . . . . . . . . . Repair Stations 6 | . 1 . 2 . . . 1 2 . . . . . . . Recycling Units 11 | . 2 . 1 . . . 1 . . 7 . . . . . Scanalyzers 4 | . . . 2 . . . 2 . . . . . . . . Garrison Access 2 | . . . . . . . 1 1 . . . . . . . Total Hacks 186 | . 24 . 50 . 2 . 29 19 5 21 6 14 7 . 9 Successful 110 | . 16 . 33 . 2 . 18 12 2 13 3 7 2 . 2 Failed 76 | . 8 . 17 . . . 11 7 3 8 3 7 5 . 7 Catastrophic 7 | . 1 . . . . . . 2 1 . . 1 2 . . Database Lockouts . | . . . . . . . . . . . . . . . . Manual 77 | . 11 . 17 . 1 . 9 9 1 15 2 5 1 . 6 Terminals 128 | . 17 . 30 . . . 16 13 5 11 6 14 7 . 9 Fabricators . | . . . . . . . . . . . . . . . . Repair Stations 18 | . 4 . 6 . . . 4 4 . . . . . . . Recycling Units 17 | . 3 . 3 . . . 1 . . 10 . . . . . Scanalyzers 17 | . . . 11 . . . 6 . . . . . . . . Garrison Access 4 | . . . . . . . 2 2 . . . . . . . Terminal Hacks 55 | . 7 . 14 . 2 . 6 7 2 5 2 7 2 . 1 Record 2 | . . . . . 1 . . . . . . . 1 . . Robot Analysis 4 | . . . 2 . . . 1 1 . . . . . . . Prototype ID Bank 12 | . 4 . 2 . . . . 1 . 4 . 1 . . . Open Door 8 | . . . . . . . . 2 1 . 1 3 1 . . Open DSF 1 | . . . . . . . . . . . 1 . . . . Level Access Points 1 | . . . . . . . . . . . . . . . 1 Branch Access Points 2 | . . . 1 . . . 1 . . . . . . . . Emergency Access Points 1 | . . . . . . . . . 1 . . . . . . Terminal Index 1 | . . . . . . . . . . . . 1 . . . Alert Level 1 | . . . . . . . . 1 . . . . . . . Unreport Threat 5 | . . . 1 . . . 1 1 . 1 . 1 . . . Locate Traps 5 | . 2 . 3 . . . . . . . . . . . . Hauler Manifests 3 | . . . 1 . . . 1 1 . . . . . . . Zone Layout 8 | . 1 . 4 . . . 2 . . . . 1 . . . Derelict Proto ID Bank 1 | . . . . . 1 . . . . . . . . . . Fabricator Hacks . | . . . . . . . . . . . . . . . . Repair Station Hacks 16 | . 4 . 6 . . . 2 4 . . . . . . . Scan Component 8 | . 2 . 3 . . . 1 2 . . . . . . . Repair 8 | . 2 . 3 . . . 1 2 . . . . . . . Recycling Unit Hacks 2 | . 2 . . . . . . . . . . . . . . Retrieve Components 2 | . 2 . . . . . . . . . . . . . . Scanalyzer 14 | . . . 8 . . . 6 . . . . . . . . Insert Component 7 | . . . 4 . . . 3 . . . . . . . . Analyze 7 | . . . 4 . . . 3 . . . . . . . . Garrison Access Hacks 2 | . . . . . . . 1 1 . . . . . . . Unlock Access 1 | . . . . . . . . 1 . . . . . . . Seal Access 1 | . . . . . . . 1 . . . . . . . . Unauthorized Hacks 21 | . 3 . 5 . . . 3 . . 8 1 . . . 1 Terminals 9 | . 3 . 2 . . . 2 . . . 1 . . . 1 Assimilate 1 | . . . . . . . . . . . 1 . . . . Botnet 4 | . 2 . 1 . . . 1 . . . . . . . . Operators 3 | . 1 . 1 . . . 1 . . . . . . . . Sabotage 1 | . . . . . . . . . . . . . . . 1 Fabricators . | . . . . . . . . . . . . . . . . Repair Stations . | . . . . . . . . . . . . . . . . Recycling Units 12 | . . . 3 . . . 1 . . 8 . . . . . Reject 1 | . . . 1 . . . . . . . . . . . . Recyclers 3 | . . . 1 . . . 1 . . 1 . . . . . Mask 1 | . . . 1 . . . . . . . . . . . . Tunnel 7 | . . . . . . . . . . 7 . . . . . Scanalyzers . | . . . . . . . . . . . . . . . . Garrison Access . | . . . . . . . . . . . . . . . . Data Cores Recovered 2 | . . . 1 . . . . 1 . . . . . . . Used . | . . . . . . . . . . . . . . . . Hacking Detections 52 | . 7 . 12 . . . 8 8 1 4 3 4 2 . 3 Full Trace Events 6 | . . . 1 . . . 2 . . 1 . . 1 . 1 Feedback Events 1 | . . . . . . . 1 . . . . . . . . Corruption 1 | . . . . . . . 1 . . . . . . . . Feedback Blocked . | . . . . . . . . . . . . . . . . Robot Schematics Acquired . | . . . . . . . . . . . . . . . . Robots Built . | . . . . . . . . . . . . . . . . Authchips . | . . . . . . . . . . . . . . . . Time . | . . . . . . . . . . . . . . . . Total Robot Build Rating . | . . . . . . . . . . . . . . . . Part Schematics Acquired 5 | . . . 3 . . . 2 . . . . . . . . Parts Built . | . . . . . . . . . . . . . . . . Authchips . | . . . . . . . . . . . . . . . . Time . | . . . . . . . . . . . . . . . . Total Part Build Rating . | . . . . . . . . . . . . . . . . Parts Repaired 8 | . 2 . 3 . . . 1 2 . . . . . . . Time 404 | . 52 . 238 . . . 25 89 . . . . . . . Parts Recycled . | . . . . . . . . . . . . . . . . Recycled Matter . | . . . . . . . . . . . . . . . . Retrieved Matter . | . . . . . . . . . . . . . . . . Retrieved Components 17 | . 17 . . . . . . . . . . . . . . Parts Scanalyzed 6 | . . . 3 . . . 3 . . . . . . . . Part Schematics Acquired 5 | . . . 3 . . . 2 . . . . . . . . Parts Damaged 1 | . . . 1 . . . . . . . . . . . . Bothacking | -11 -10 -10 -9 -9 -9 -8 -8 -8 -8 -8 -6 -6 -6 -6 -6 ------------ Run | Yrd Mat Min Mat Min Exi Min Mat Sto Gar Rec Fac Ext Cet Arc Hub Used RIF Installer 2 | . . . . . . . . . 2 . . . . . . Program Shield 1 | . . . . . . . . . 1 . . . . . . Robots Hacked 6 | . . . . . . . . . . . 1 . . . 5 Non-combat 2 | . . . . . . . . . . . 1 . . . 1 Combat 4 | . . . . . . . . . . . . . . . 4 Robot Hacks Applied 8 | . . . . . . . . . . . 3 . . . 5 parse_system 1 | . . . . . . . . . . . 1 . . . . map_walls 1 | . . . . . . . . . . . . . . . 1 find_station 1 | . . . . . . . . . . . 1 . . . . amplify_resonance 2 | . . . . . . . . . . . . . . . 2 overwrite_iff 1 | . . . . . . . . . . . . . . . 1 streamctrl_high 1 | . . . . . . . . . . . . . . . 1 formatsys_low 1 | . . . . . . . . . . . 1 . . . . Relay Couplers Released 8 | . . . . . . . . . 8 . . . . . . Machine Destruction 8 | . . . . . . . . . 8 . . . . . . Attached 3 | . . . . . . . . . . . 1 . . . 2 Fabnet Peak Effective % . | . . . . . . . . . . . . . . . . Robots Rewired 27 | . . . . . . . . . . 16 . 11 . . . Allies Hacked . | . . . . . . . . . . . . . . . . Hacks Repelled . | . . . . . . . . . . . . . . . . Allies | -11 -10 -10 -9 -9 -9 -8 -8 -8 -8 -8 -6 -6 -6 -6 -6 -------- Run | Yrd Mat Min Mat Min Exi Min Mat Sto Gar Rec Fac Ext Cet Arc Hub Total Allies 50 | . . . . . . . . 10 1 16 2 14 5 . 2 Largest Group 16 | . . . . . . . . 10 1 16 15 16 13 12 11 Highest-Rated Group 841 | . . . . . . . . 173 25 171 166 626 841 746 587 Highest-Rated Ally 159 | . . . . . . . . 29 25 21 26 159 159 159 96 Total Orders 46 | . . . . . . . . . . . 10 . 18 17 1 STAY 19 | . . . . . . . . . . . . . 8 11 . ROAM 7 | . . . . . . . . . . . 7 . . . . FOLLOW 15 | . . . . . . . . . . . 1 . 8 6 . AID 4 | . . . . . . . . . . . 1 . 2 . 1 TUNNEL 1 | . . . . . . . . . . . 1 . . . . Ally Attacks 380 | . . . . . . . . 52 1 6 9 93 91 17 111 Total Damage 11531 | . . . . . . . . 718 35 133 475 2080 2685 576 4829 Kills 69 | . . . . . . . . 7 . 2 4 13 11 4 28 Allies Corrupted . | . . . . . . . . . . . . . . . . Allies Melted . | . . . . . . . . . . . . . . . . Intel | -11 -10 -10 -9 -9 -9 -8 -8 -8 -8 -8 -6 -6 -6 -6 -6 ------- Run | Yrd Mat Min Mat Min Exi Min Mat Sto Gar Rec Fac Ext Cet Arc Hub Robot Analysis Total 4 | . . . 2 . . . 1 1 . . . . . . . Derelict Logs Recovered 2 | . . 1 . 1 . . . . . . . . . . . Drone Launches . | . . . . . . . . . . . . . . . . Drone Recoveries . | . . . . . . . . . . . . . . . . Exploration | -11 -10 -10 -9 -9 -9 -8 -8 -8 -8 -8 -6 -6 -6 -6 -6 ------------- Run | Yrd Mat Min Mat Min Exi Min Mat Sto Gar Rec Fac Ext Cet Arc Hub Turns Passed 25383 | 97 3057 624 4709 1398 845 1321 3105 2227 1809 2510 783 1172 671 401 654 Spaces Moved 10345 | 23 1134 377 1804 540 352 532 1090 808 666 1004 449 656 386 205 319 Core 2 | . . . . . . . . . . . . . . . 2 Treads 10343 | 23 1134 377 1804 540 352 532 1090 808 666 1004 449 656 386 205 317 Legs . | . . . . . . . . . . . . . . . . Wheels . | . . . . . . . . . . . . . . . . Hover . | . . . . . . . . . . . . . . . . Flight . | . . . . . . . . . . . . . . . . Fastest Speed 151 | 160 160 160 160 240 240 240 230 153 233 233 151 151 158 160 160 Average Speed 202 | 160 160 160 197 240 240 240 237 232 233 233 151 152 160 160 163 Slowest Speed 750 | 160 160 160 240 240 240 240 243 233 233 233 151 158 240 160 750 Overloaded Moves . | . . . . . . . . . . . . . . . . Propulsion Burnouts . | . . . . . . . . . . . . . . . . Robots Hopped . | . . . . . . . . . . . . . . . . Cave-ins Triggered . | . . . . . . . . . . . . . . . . Exploration Rate (%) 75 | 3 98 94 99 96 70 100 87 95 88 98 9 69 86 78 34 Regions Visited 15 Branch Regions 10 Pre-discovered Areas 8 | . . . . . 1 . . . . 7 . . . . . Known Exits Taken 7 | . . . 1 . . . 1 1 . . 1 1 1 1 . Unknown Exits Taken 7 | 1 1 1 . 1 1 1 . . . 1 . . . . . Scrap Searched 5 | . . 1 . 2 . 2 . . . . . . . . . Spaces Dug 54 | . 15 . 18 . . 11 8 . 2 . . . . . . Terrain Destroyed 244 | . 71 . 44 1 . 12 40 16 33 17 . . . . 10 Melee 8 | . . . . . . . 8 . . . . . . . . Projectile 8 | . 3 . . 1 . 1 . 1 1 1 . . . . . AOE 228 | . 68 . 44 . . 11 32 15 32 16 . . . . 10 Terrain Rammed . | . . . . . . . . . . . . . . . . Walls Destroyed . | . . . . . . . . . . . . . . . . Machines Disabled . | . . . . . . . . . . . . . . . . Actions | -11 -10 -10 -9 -9 -9 -8 -8 -8 -8 -8 -6 -6 -6 -6 -6 --------- Run | Yrd Mat Min Mat Min Exi Min Mat Sto Gar Rec Fac Ext Cet Arc Hub Total 13809 | 64 2264 399 2742 596 352 561 1400 1059 815 1135 536 794 432 261 399 Wait 2374 | 20 1036 9 744 30 . 13 121 165 56 30 47 62 11 13 17 Move 10329 | 22 1133 376 1803 539 351 531 1089 807 664 1003 448 655 385 204 319 Hop . | . . . . . . . . . . . . . . . . Pick Up 76 | 3 4 4 24 1 . 2 12 2 5 3 2 3 4 5 2 Fast Attach 59 | 1 6 1 7 . . . 7 12 1 1 5 5 6 5 2 Attach 20 | 2 . . 3 . . . 3 . . . 4 . . . 8 Detach 2 | . . . 1 . . . . . . . 1 . . . . Swap 132 | 2 21 4 24 2 . 5 27 6 12 5 7 8 1 . 8 Drop 131 | 4 6 5 28 1 . 2 28 13 5 3 4 8 12 9 3 Fire 553 | 10 56 . 103 23 1 7 98 50 65 25 17 21 13 25 39 Melee 31 | . . . . . . . 8 . . . . 22 . . 1 Ram . | . . . . . . . . . . . . . . . . Kick . | . . . . . . . . . . . . . . . . Crush 25 | . 2 . 5 . . 1 7 4 1 5 . . . . . Escape Stasis 6 | . . . . . . . . . 6 . . . . . . Rewire 71 | . . . . . . . . . . 60 1 10 . . . Trap . | . . . . . . . . . . . . . . . . Miscellaneous . | . . . . . . . . . . . . . . . . Route ------- -11/Scrapyard -10/Materials (discovered 4 exits: *Mat x3 / [*Min]) -10/Mines (discovered 2 exits: *Mat x2) -9/Materials (discovered 4 exits: *Mat x3 / *Min) -9/Mines (discovered 3 exits: *Mat x2 / *Exi) -9/Exiles -8/Mines (discovered 2 exits: *Mat x2) -8/Materials (discovered 4 exits: [*Fac x3] / *Sto) -8/Storage (discovered 3 exits: [*Fac] / *Rec / Gar) -8/Garrison (discovered 3 exits: *Rec x3) -8/Recycling -6/Factory (discovered 2 exits: *Fac / *Ext) -6/Extension (discovered 2 exits: *Fac / *Cet) -6/Cetus (discovered 3 exits: *Fac x2 / *Arc) -6/Archives (discovered 3 exits: *Fac / *Hub x2) -6/Hub_04(d) (discovered 4 exits: Fac x4) History --------- Turn | Location | Event 16 | -11/Scrapyard | Discovered new exit (range 3) 98 | -11/Scrapyard | Entered Materials 300 | -10/Materials | Build established: Mutant 321 | -10/Materials | Discovered new exit (range 14) 321 | -10/Materials | Discovered new exit (range 19) 870 | -10/Materials | Discovered new exit (range 15) 1253 | -10/Materials | Discovered new exit (range 11) 3088 | -10/Materials | Repaired Med. Laser 3116 | -10/Materials | Repaired Ion Engine 3155 | -10/Materials | Entered Mines 3166 | -10/Mines | Received a Rocket Launcher from a helpful Derelict 3183 | -10/Mines | Met a Derelict bent on vengeance 3379 | -10/Mines | Found a damaged Exp. Sensor Array with a note attached 3383 | -10/Mines | Found Prototype Device 3383 | -10/Mines | Identified Exp. Sensor Array 3472 | -10/Mines | Learned Materials terminal intel 3496 | -10/Mines | Discovered new exit (range 8) 3747 | -10/Mines | Discovered new exit (range 6) 3779 | -10/Mines | Entered Materials 3779 | -9/Materials | Evolved 2 slots: Propulsion x1, Utility x1 3780 | -9/Materials | Loaded intel: 12 terminal locations 3969 | -9/Materials | Repaired Broken Exp. Sensor Array 5239 | -9/Materials | Discovered new exit (range 12) 5674 | -9/Materials | Discovered new exit (range 15) 5779 | -9/Materials | Discovered new exit (range 16) 6602 | -9/Materials | Discovered new exit (range 15) 7628 | -9/Materials | Repaired Adv. Beam Cannon 7681 | -9/Materials | Repaired Adv. Beam Cannon 8395 | -9/Materials | Identified exit to Mines 8488 | -9/Materials | Entered Mines 8510 | -9/Mines | Assembled infested the area 8613 | -9/Mines | YI-UF0 nonchalantly dropped a Grenade Launcher on the ground 8619 | -9/Mines | Murdered YI-UF0 8619 | -9/Mines | Destroyed YI-UF0 8804 | -9/Mines | Discovered new exit (range 7) 9276 | -9/Mines | Learned Materials terminal intel 9433 | -9/Mines | Found a hidden stash of uninstalled traps 9493 | -9/Mines | Discovered new exit (range 10) 9780 | -9/Mines | Deemed a non-threat by the Exiles lab entrance 9780 | -9/Mines | Discovered new exit (range 5) 9886 | -9/Mines | Entered Exiles 9944 | -9/Exiles | Met 8R-AWN 9985 | -9/Exiles | Met EX-HEX 10098 | -9/Exiles | Met EX-DEC 10155 | -9/Exiles | Learned location of Zion (-6) 10342 | -9/Exiles | Met EX-BIN 10376 | -9/Exiles | Aligned with FarCom system 10378 | -9/Exiles | Given EX-Vault access code 10436 | -9/Exiles | Opened EX-Vault 10489 | -9/Exiles | Warned to stay clear of 0b10 Research branches 10638 | -9/Exiles | Discovered new exit (range 12) 10694 | -9/Exiles | Attacked by the Exiles 10731 | -9/Exiles | Entered Mines 11588 | -8/Mines | Discovered new exit (range 13) 12016 | -8/Mines | Discovered new exit (range 12) 12052 | -8/Mines | Entered Materials 12052 | -8/Materials | Evolved 2 slots: Utility x2 12053 | -8/Materials | Loaded intel: 8 terminal locations 12680 | -8/Materials | Identified exit to Storage 14258 | -8/Materials | Discovered new exit (range 14) 14311 | -8/Materials | Repaired Adv. Beam Cannon 14597 | -8/Materials | Discovered new exit (range 15) 15152 | -8/Materials | Discovered new exit (range 9) 15157 | -8/Materials | Entered Storage 15615 | -8/Storage | Repaired Cld. Ion Engine 16045 | -8/Storage | Found Prototype Processor 16045 | -8/Storage | Identified Exp. Targeting Computer 16099 | -8/Storage | Assisted by bots powering up and referring to "LRC-V3" 16263 | -8/Storage | Identified exit to Garrison 16329 | -8/Storage | Garrison activated, responded to threat 16385 | -8/Storage | Discovered new exit (range 16) 16389 | -8/Storage | Lost 8 allies 16641 | -8/Storage | Repaired Arm. Treads 17122 | -8/Storage | Used back door to open Recycling access 17122 | -8/Storage | Discovered new exit (range 5) 17384 | -8/Storage | Entered Garrison 17384 | -8/Garrison | Accompanied by 1 ally 17582 | -8/Garrison | Triggered checkpoint 17698 | -8/Garrison | Triggered checkpoint 17832 | -8/Garrison | Triggered checkpoint 17906 | -8/Garrison | Discovered new exit (range 3) 18220 | -8/Garrison | Discovered new exit (range 4) 18254 | -8/Garrison | Triggered checkpoint 18415 | -8/Garrison | Installed Relay Interface Framework 18484 | -8/Garrison | Garrison Relay disabled 18680 | -8/Garrison | Triggered checkpoint 18800 | -8/Garrison | Expanded RIF knowledge: Program Shield 18960 | -8/Garrison | Discovered new exit (range 14) 18990 | -8/Garrison | Rescued a captive Derelict 19026 | -8/Garrison | Triggered checkpoint 19099 | -8/Garrison | Garrison Relay disabled 19193 | -8/Garrison | Entered Recycling 19488 | -8/Recycling | Discovered new exit (range 14) 20404 | -8/Recycling | Build established: Commander-Mutant 21703 | -8/Recycling | Entered Factory 21703 | -6/Factory | Accompanied by 15 allies 21703 | -6/Factory | Evolved 4 slots: Propulsion x1, Utility x1, Weapon x2 21800 | -6/Factory | Identified exit to DSF 21915 | -6/Factory | Lost 12 allies 21954 | -6/Factory | Discovered new exit (range 10) 21966 | -6/Factory | Identified exit to Factory 22015 | -6/Factory | Discovered new exit (range 6) 22019 | -6/Factory | Identified exit to Extension 22053 | -6/Factory | Search patrols dispatched 22192 | -6/Factory | Build established: Skirmisher 22486 | -6/Factory | Entered Extension 22486 | -6/Extension | Accompanied by 2 allies 22549 | -6/Extension | Rescued a captive Derelict 22793 | -6/Extension | Rescued a captive Derelict 22823 | -6/Extension | Rescued A7 22956 | -6/Extension | Build established: Commander-Skirmisher 23322 | -6/Extension | Spotted B-75 Beast 23330 | -6/Extension | Allies destroyed B-75 Beast 23339 | -6/Extension | Spotted B-75 Beast 23342 | -6/Extension | Allies destroyed B-75 Beast 23381 | -6/Extension | Lost 3 allies 23540 | -6/Extension | Discovered new exit (range 16) 23542 | -6/Extension | Discovered exit to Factory (range 15) 23562 | -6/Extension | Identified exit to Cetus 23658 | -6/Extension | Entered Cetus 23658 | -6/Cetus | Accompanied by 12 allies (A7) 23663 | -6/Cetus | Acquired a Cetus Manufacturing Module code from A7 23673 | -6/Cetus | Spotted Cetus Guard 23673 | -6/Cetus | Spotted Cetus Guard 23676 | -6/Cetus | Spotted Cetus Guard 23676 | -6/Cetus | Spotted Cetus Guard 23680 | -6/Cetus | Allies destroyed Cetus Guard 23684 | -6/Cetus | Allies destroyed Cetus Guard 23687 | -6/Cetus | Destroyed Cetus Guard 23689 | -6/Cetus | Allies destroyed Cetus Guard 23709 | -6/Cetus | System corruption reached 10% 23717 | -6/Cetus | Lost 4 allies 23777 | -6/Cetus | Started Cetus Manufacturing Module 23791 | -6/Cetus | Escorted A7 to Cetus Mainframe 23802 | -6/Cetus | Manufactured an Enhanced Grunt 23827 | -6/Cetus | Manufactured an Enhanced Grunt 23852 | -6/Cetus | Manufactured an Enhanced Grunt 23877 | -6/Cetus | Manufactured an Enhanced Grunt 23896 | -6/Cetus | Discovered new exit (range 16) 23902 | -6/Cetus | Manufactured an Enhanced Grunt 23961 | -6/Cetus | Spotted Cetus Guard 23961 | -6/Cetus | Spotted Cetus Guard 23965 | -6/Cetus | Spotted Cetus Guard 23965 | -6/Cetus | Spotted Cetus Guard 23973 | -6/Cetus | Allies destroyed Cetus Guard 23974 | -6/Cetus | Allies destroyed Cetus Guard 23977 | -6/Cetus | Allies destroyed Cetus Guard 23978 | -6/Cetus | Discovered exit to Factory (range 15) 23981 | -6/Cetus | Allies destroyed Cetus Guard 23990 | -6/Cetus | Met Revision 17 24191 | -6/Cetus | Discovered exit to Factory (range 15) 24327 | -6/Cetus | Identified exit to Archives 24329 | -6/Cetus | Entered Archives 24329 | -6/Archives | Accompanied by 12 allies (A7) 24334 | -6/Archives | Received a hacking code to weaken MAIN.C 24397 | -6/Archives | Discovered exit to Factory (range 16) 24418 | -6/Archives | Discovered new exit (range 16) 24445 | -6/Archives | Identified exit to Hub_04(d) 24530 | -6/Archives | Discovered exit to Hub_04(d) (range 15) 24730 | -6/Archives | Entered Hub_04(d) 24730 | -6/Hub_04(d) | Accompanied by 11 allies 25103 | -6/Hub_04(d) | Spotted B-75 Beast 25119 | -6/Hub_04(d) | Lost 4 allies 25122 | -6/Hub_04(d) | Allies destroyed B-75 Beast 25200 | -6/Hub_04(d) | Network Hub disabled 25214 | -6/Hub_04(d) | Garrison activated, responded to threat 25219 | -6/Hub_04(d) | Spotted Lightning 25220 | -6/Hub_04(d) | Spotted Lightning 25222 | -6/Hub_04(d) | Spotted Lightning 25258 | -6/Hub_04(d) | Allies destroyed Lightning 25259 | -6/Hub_04(d) | Allies destroyed Lightning 25268 | -6/Hub_04(d) | Spotted Lightning 25322 | -6/Hub_04(d) | Lost 9 allies 25343 | -6/Hub_04(d) | Spotted Lightning 25344 | -6/Hub_04(d) | Spotted Lightning 25344 | -6/Hub_04(d) | Destroyed Lightning 25345 | -6/Hub_04(d) | Spotted Lightning 25350 | -6/Hub_04(d) | System corruption reached 30% 25364 | -6/Hub_04(d) | Core integrity fell below 50% 25376 | -6/Hub_04(d) | Core integrity fell below 20% 25384 | -6/Hub_04(d) | Destroyed by Lightning with EMDS Last Messages --------------- 25365_ Rocket Launcher destroyed. 25365_ Destroyed Rocket Launcher. 25365_ Penetrated by EMDS Slug. 25370_ Imp. Medium Treads destroyed. 25370_ Destroyed Imp. Medium Treads. 25370_ Imp. Medium Treads destroyed. 25370_ Destroyed Imp. Medium Treads. 25370_ K-01 Serf destroyed. 25370_ Penetrated by EMDS Slug. 25371_ Hvy. Laser destroyed. 25371_ Penetrated by EMDS Slug. 25371_ Imp. Grenade Launcher destroyed. 25373_ EMDS Slug penetrates Wall. 25377_ Penetrated by EMDS Slug. 25379_ The unstable cave ceiling collapses. 25381_ EMDS Slug penetrates Wall. 25381_ Adv. Datajack destroyed. 25384_ Penetrated by EMDS Slug. 25384_ Exp. Sensor Array destroyed. 25384_ Penetrated by EMDS Slug. Map ----- +----------------------------------------------------+ | ^ #?????????????????????????????????????????? | | ##????????????????????????????????????????? | | ^ T#????????????????????????????????????????? | | ^ ##????? ? ????????????????????????????????? | | ^^ ##????? ? ????????????????????????????????? | | +????" ? ????????????????????????????????? | | #####????" ? ????????????????????????????????? | | #???????? ? ????????????????????????????????? | | #????????" " ????????????????????????????????? | | #????????" " ????????????????????????????????? | | #####??? " " ????????????????????????????????? | | +???? ?o??????? ??????????????????????? | | ### #????? ??????? ???????????????????????? | | ??# #######+###### ?????????????????????????? | | ??# ?????????????????"?????????? | | ###+########### #????????????????? ??????????? | | # ! # #???????#########+####????????? | | # + = ;######## """ ???????? | | + """"T"""" # %!; ! # " " ????????? | | # """"""""""" # !%; % !%*# " " ????????? | | ############### %=! %%= %ihh " " ????????? | | ????###########; *%!!**% ! h #?????? | | ????# %[! ! ############????????? | | ????# """" !%!! #???????????????????? | | ??????"""" ! [!% =h = #???????????????????? | | ??????"""" %[%=%/% @ ##???????????????????? | | ????# """" ! % tk= #???????????????????? | | ????# !% !%[ ##???????????????????? | | ????+ """" *]! R =%% #????????????????????? | | ??????"""" " " ! #u## [;#????????????????????? | | ???????""" """ ##i % #???????????????????? | | ????????"" """" # # = #???????????????????? | | ???????? # # * #???????????????????? | | ??????? # # ! #???????????????????? | | ??????######+##### ? %R #???????????????????? | | ?????????????????? ?? ] R #???????????????????? | | ?????????????????? ?# k #???????????????????? | | ?????????????????? ?# k #???????????????????? | | ?????????????????? ?# #???????????????????? | | ?????????????????? ??######+##???????????????????? | | ?????????????????? ???????? ?????????????????????? | | ????????????????????????????????????H????????????? | | ?????????????????????????????????????????????????? | | ?????????????????????????????????????????????????? | | ?????????????????????????????????????????????????? | | ?????????????????????????????????????????????????? | | ?????????????????????????????????????????????????? | | ?????????????????????????????????????????????????? | | ?????????????????????????????????????????????????? | | ?????????????????????????????????????????????????? | +----------------------------------------------------+ Best States ------------- Heat Dissipation 72 Coolant Potential 50 Energy Generation 25 Energy Capacity 350 Matter Stores 300 Matter Capacity 300 Sight Range 16 Robot Scan Range 20 Terrain Scan Range 16 Terrain Scan Density 10 Armor Coverage 450 Resistance: KI 20 Evasion (%) 40 Recoil Reduction 4 Salvage Targeting 1 Offensive Hacking 10 Relay Coupler Types 2 Relay Coupler Value 47 Authchip Count 1 Item Schematics ----------------- Exp. Sensor Array | -9/Materials | Scanalyzed Hacking Suite | -9/Materials | Scanalyzed Cooling System | -9/Materials | Scanalyzed Imp. Terrain Scanner | -8/Materials | Scanalyzed Hrd. Medium Armor Plating | -8/Materials | Scanalyzed Robot Schematics ------------------ None Fabricated ------------ Nothing Alien Tech Used ----------------- None Achievements -------------- Error 47 Challenges ------------ None Game ------ Seed RiotVariableSlayer Manual? 0 Play Time 03:26:26 Cumulative 93.0 hours Start 2024.05.11 @ 00:25:51 End 2024.05.11 @ 18:53:30 Sessions 3 Manual Loads 0 Difficulty Rogue Special Mode None Game No. 55 Rogue 55 Adventurer 0 Explorer 0 Win Type - Total 0 Types 0/0/0/0/0/0/0/0/0 Lore% 33 Gallery% 47 Achievement% 37 Wizard Run 0 Options --------- Layout 0 ASCII 0 Keyboard 0 Movement Numpad Keybinds 1 Fullscreen 1 Font 18/SmallcapsGlow Map View 76x50 Zoom Use 0% Tactical HUD 1 Map Filters NONE Filters NONE Steam 1 RUN: f0205b53-92ab-4542-9a84-a98221235923